bitfinex/quotes_BTCUSD_20220211
["timestamp","ask_amount","ask_price","bid_price","bid_amount"]
[1644601293887,0.00027057,43587.0,43576.0,0.3946516]
[1644601294131,0.29605165,43588.0,43576.0,0.3946516]
[1644601294331,0.00027057,43587.0,43576.0,0.3946516]
[1644601294535,0.29578108,43588.0,43576.0,0.3946516]
[1644601294536,0.09032997,43583.0,43576.0,0.4446516]
[1644601294734,0.00060422,43583.0,43578.0,0.057375]
[1644601294931,0.00060422,43583.0,43579.0,0.114727]
[1644601295334,0.00060422,43583.0,43582.0,0.26462092]
[1644601295533,0.00027057,43586.0,43582.0,0.26462092]
[1644601295732,0.00060609,43583.0,43582.0,0.32198492]
[1644601296632,0.00027057,43585.0,43584.0,0.36558776]
[1644601296835,0.00027057,43588.0,43585.0,0.057359]
[1644601297233,0.01,43589.0,43585.0,0.057359]
[1644601297892,0.01027057,43589.0,43585.0,0.164715]
[1644601298090,0.01060595,43589.0,43585.0,0.164715]
[1644601298889,0.01060595,43589.0,43585.0,0.217069]
[1644601299089,0.01060595,43589.0,43587.0,0.057356]
[1644601299090,0.01,43589.0,43587.0,0.057356]
[1644601299289,0.01060579,43589.0,43587.0,0.107356]
[1644601300189,0.01,43589.0,43587.0,0.057356]
[1644601301191,0.01,43589.0,43587.0,0.11471121]
[1644601302834,0.01,43589.0,43587.0,0.16471121]
[1644601303134,0.01,43589.0,43587.0,0.11471121]
[1644601303334,0.01,43589.0,43588.0,0.05]
[1644601303732,0.01,43589.0,43587.0,0.11471121]
[1644601304135,0.01,43589.0,43588.0,0.05]
[1644601304336,0.01,43589.0,43588.0,0.0458]
[1644601308595,0.33282551,43589.0,43588.0,0.0458]
[1644601308798,0.33282551,43589.0,43586.0,0.114712]
[1644601309039,0.01,43589.0,43586.0,0.114712]
[1644601311845,0.01,43589.0,43587.0,0.21743229]
[1644601312645,0.01,43589.0,43587.0,0.33214129]
[1644601313098,0.01,43589.0,43587.0,0.38949582]
[1644601313499,0.01,43589.0,43588.0,0.057354]
[1644601316635,0.01,43589.0,43586.0,0.057367]
[1644601317437,0.01,43589.0,43580.0,0.17207]
[1644601317640,0.01,43589.0,43576.0,0.057376]
[1644601317641,0.323227,43588.0,43576.0,0.057376]
[1644601317840,0.323227,43588.0,43570.0,0.34230624]
[1644601317841,0.35755584,43587.0,43570.0,0.34230624]
[1644601318037,0.35782641,43587.0,43570.0,0.54850127]
[1644601318238,0.35765584,43587.0,43570.0,0.52208896]
[1644601318437,0.32831402,43581.0,43573.0,0.60304194]
[1644601318638,0.00037057,43586.0,43576.0,0.05]
[1644601318837,0.35755584,43587.0,43576.0,0.05]
[1644601318838,0.35782641,43587.0,43576.0,0.05]
[1644601319037,0.08416988,43585.0,43576.0,0.05]
[1644601319238,0.00064805,43581.0,43576.0,0.05]
[1644601319539,0.53404236,43584.0,43576.0,0.05]
[1644601319737,0.00037057,43583.0,43581.0,0.057372]
[1644601319939,0.11568698,43579.0,43576.0,0.05]
[1644601320789,0.11568698,43579.0,43578.0,0.114742]
[1644601322587,0.11568698,43579.0,43578.0,0.49597718]
[1644601324140,0.11568698,43579.0,43578.0,0.164742]
[1644601324337,0.11568698,43579.0,43576.0,0.05]
[1644601324338,0.38410186,43579.0,43576.0,0.05]
[1644601324539,0.323227,43578.0,43576.0,0.05]
[1644601324741,0.59091123,43577.0,43576.0,0.05]
[1644601324940,0.59101123,43577.0,43576.0,0.05]
[1644601332239,0.0001,43577.0,43576.0,0.05]
[1644601332439,0.11568698,43579.0,43576.0,0.05]
[1644601332839,0.11568698,43579.0,43577.0,0.0016955]
[1644601333039,0.11568698,43579.0,43578.0,0.33801196]
[1644601334440,0.11568698,43579.0,43577.0,0.1164405]
[1644601334642,0.58424262,43578.0,43577.0,0.0016955]
[1644601334840,0.58434262,43578.0,43577.0,0.0016955]
[1644601335488,0.94152009,43578.0,43577.0,0.0016955]
[1644601335688,0.9989015,43578.0,43577.0,0.0016955]
[1644601336092,0.9982901,43578.0,43577.0,0.0016955]
[1644601336488,0.6750631,43578.0,43577.0,0.0016955]
[1644601336892,0.9982901,43578.0,43577.0,0.0016955]
[1644601337290,1.0482901,43578.0,43577.0,0.0016955]
[1644601340337,0.6750631,43578.0,43577.0,0.0016955]
[1644601340938,0.6638582,43578.0,43577.0,0.0016955]
[1644601341637,0.9870852,43578.0,43577.0,0.0016955]
[1644601342039,0.6638582,43578.0,43577.0,0.0016955]
[1644601342237,0.9870852,43578.0,43577.0,0.0016955]
[1644601342890,0.6638582,43578.0,43577.0,0.0016955]
[1644601344990,0.30668073,43578.0,43577.0,0.0016955]
[1644601345190,0.26111562,43578.0,43577.0,0.0016955]
[1644601345389,0.11568698,43579.0,43577.0,0.0016955]
[1644601347241,0.11568698,43579.0,43578.0,0.057375]
[1644601347544,0.02418614,43579.0,43578.0,0.153175]
[1644601347749,0.0001,43583.0,43579.0,0.8]
[1644601347943,0.00063967,43583.0,43579.0,0.9]
[1644601348146,0.00063967,43583.0,43582.0,0.21550545]
[1644601348344,0.00063967,43583.0,43582.0,0.31866245]
[1644601348542,0.00063967,43583.0,43582.0,0.32923591]
[1644601348741,0.00027057,43586.0,43582.0,0.32923591]
[1644601348944,0.00027057,43587.0,43583.0,0.05736]
[1644601349150,0.00063969,43585.0,43580.0,0.0458]
[1644601349544,0.00063969,43585.0,43580.0,0.103173]
[1644601349743,0.00063969,43585.0,43583.0,0.114718]
[1644601349942,0.229436,43582.0,43580.0,0.103173]
[1644601351291,0.229436,43582.0,43581.0,0.057369]
[1644601367704,0.229436,43582.0,43578.0,0.05]
[1644601367705,0.552663,43582.0,43578.0,0.05]
[1644601367899,0.323327,43581.0,43578.0,0.05]
[1644601369138,0.323327,43581.0,43579.0,0.05738]
[1644601370239,0.323227,43580.0,43579.0,0.11476]
[1644601370640,0.323227,43580.0,43577.0,0.0016955]
[1644601371039,0.323327,43580.0,43577.0,0.0016955]
[1644601372241,0.99993018,43578.0,43577.0,0.0016955]
[1644601372639,1.00003018,43578.0,43577.0,0.0016955]
[1644601373499,1.00003018,43578.0,43571.0,0.00060411]
[1644601373500,0.38062,43577.0,43571.0,0.00060411]
[1644601373700,0.38062,43577.0,43561.0,0.2028114]
[1644601373701,1.05,43571.0,43561.0,0.2028114]
[1644601373894,0.05,43568.0,43561.0,0.2028114]
[1644601374095,0.323227,43567.0,43559.0,0.23304677]
[1644601374292,0.323227,43567.0,43559.0,0.05]
[1644601374293,0.673227,43567.0,43559.0,0.05]
[1644601374498,0.05,43561.0,43559.0,0.05]
[1644601374798,0.05,43561.0,43555.0,0.00016401]
[1644601374799,0.323227,43560.0,43555.0,0.00016401]
[1644601374995,0.29193452,43559.0,43555.0,0.00016401]
[1644601375192,0.323227,43558.0,43555.0,0.00016401]
[1644601375991,0.27670391,43557.0,43555.0,0.00016401]
[1644601376196,0.323227,43556.0,43555.0,0.00016401]
[1644601376393,0.057413,43563.0,43555.0,0.00016401]
[1644601376394,0.3927,43566.0,43555.0,0.00016401]
[1644601376643,0.323227,43563.0,43555.0,0.00016401]
[1644601377342,0.66163168,43563.0,43555.0,0.00016401]
[1644601377543,0.07592623,43561.0,43555.0,0.00016401]
[1644601378041,0.07592623,43561.0,43557.0,0.00068294]
[1644601379041,0.07592623,43561.0,43555.0,0.00016401]
[1644601379240,0.1166,43564.0,43557.0,0.00068294]
[1644601379444,0.323227,43565.0,43559.0,0.05]
[1644601380299,0.29746946,43562.0,43559.0,0.05]
[1644601380495,0.323227,43561.0,43560.0,0.00068293]
[1644601381505,0.323227,43561.0,43559.0,0.05]
[1644601382997,0.323227,43561.0,43558.0,0.00063656]
[1644601382998,0.323227,43560.0,43558.0,0.00063656]
[1644601383699,0.05741058,43561.0,43558.0,0.00063656]
[1644601383898,0.05741058,43561.0,43555.0,0.00016401]
[1644601383899,0.323227,43560.0,43555.0,0.00016401]
[1644601384147,0.323227,43560.0,43557.0,0.00063656]
[1644601384748,0.43804654,43560.0,43557.0,0.00063656]
[1644601384948,0.323227,43558.0,43557.0,0.00063656]
[1644601385148,0.66438149,43558.0,43555.0,0.00016401]
[1644601385351,0.66438149,43558.0,43556.0,0.00063657]
[1644601385549,0.31802069,43557.0,43556.0,0.00063657]
[1644601385849,0.64124769,43557.0,43556.0,0.00063657]
[1644601386049,0.69866069,43557.0,43556.0,0.00063657]
[1644601386349,0.76615635,43557.0,43555.0,0.00016401]
[1644601386549,0.323227,43556.0,43555.0,0.00016401]
[1644601387251,0.3219179,43556.0,43555.0,0.00016401]
[1644601387650,0.3219179,43556.0,43554.0,0.0001996]
[1644601387651,0.3219179,43556.0,43553.0,0.0006397]
[1644601388702,0.33510413,43555.0,43552.0,0.0001996]
[1644601388902,0.323227,43554.0,43552.0,0.0006397]
[1644601389103,0.323227,43554.0,43552.0,0.0008393]
[1644601389301,0.323227,43554.0,43552.0,0.0006397]
[1644601389905,0.323227,43554.0,43551.0,0.0501996]
[1644601390106,0.323227,43554.0,43551.0,0.0506395]
[1644601391103,0.323227,43554.0,43551.0,0.05]
[1644601391307,0.38064143,43554.0,43551.0,0.05]
[1644601391548,0.05741443,43554.0,43551.0,0.05]
[1644601391748,0.10741443,43554.0,43551.0,0.0501996]
[1644601391949,0.323235,43553.0,43551.0,0.0501996]
[1644601392148,0.10741443,43554.0,43551.0,0.05]
[1644601392347,0.10741443,43554.0,43551.0,0.0501996]
[1644601392747,0.17227198,43553.0,43551.0,0.05]
[1644601392948,0.17227198,43553.0,43551.0,0.0501996]
[1644601393153,0.17227198,43553.0,43551.0,0.05]
[1644601393448,0.323235,43552.0,43551.0,0.05]
[1644601394550,0.17227198,43553.0,43551.0,0.05]
[1644601394849,0.323235,43552.0,43551.0,0.05]
[1644601395047,0.17227198,43553.0,43551.0,0.05]
[1644601396295,0.323235,43551.0,43544.0,0.0011]
[1644601396496,0.057426,43549.0,43544.0,0.0011]
[1644601396696,0.426472,43548.0,43544.0,0.0011]
[1644601396892,0.576472,43548.0,43544.0,0.0011]
[1644601397094,0.323235,43547.0,43544.0,0.0011]
[1644601397292,0.43443961,43546.0,43544.0,0.0011]
[1644601397492,0.323235,43545.0,43544.0,0.0011]
[1644601397691,0.373235,43545.0,43544.0,0.0011]
[1644601397892,0.473235,43545.0,43544.0,0.0011]
[1644601398493,0.82479725,43545.0,43544.0,0.0011]
[1644601398793,0.72479725,43545.0,43544.0,0.0011]
[1644601399043,0.78223225,43545.0,43544.0,0.0011]
[1644601399244,0.72479725,43545.0,43544.0,0.0011]
[1644601401849,0.72479725,43545.0,43540.0,9.86e-06]
[1644601401850,1.488108,43543.0,43540.0,9.86e-06]
[1644601402048,0.323235,43542.0,43540.0,9.86e-06]
[1644601402248,0.7168727,43542.0,43540.0,9.86e-06]
[1644601402909,0.7743207,43542.0,43540.0,9.86e-06]
[1644601404108,0.30453814,43541.0,43540.0,9.86e-06]
[1644601404609,0.32328514,43539.0,43536.0,0.4211]
[1644601404808,0.60501748,43539.0,43536.0,0.4211]
[1644601405608,0.60501748,43539.0,43536.0,0.42178305]
[1644601405807,0.60501748,43539.0,43536.0,0.00178305]
[1644601405808,0.75501748,43539.0,43536.0,0.00178305]
[1644601406640,0.75501748,43539.0,43536.0,0.0011]
[1644601406840,0.75501748,43539.0,43536.0,0.00178305]
[1644601407841,1.6,43538.0,43532.0,0.20456205]
[1644601408041,0.380689,43535.0,43532.0,0.20456205]
[1644601408242,0.62717767,43534.0,43532.0,0.20456205]
[1644601408542,0.27163087,43533.0,43532.0,0.20456205]
[1644601408747,0.59486587,43533.0,43532.0,0.20456205]
[1644601409143,0.05745315,43535.0,43532.0,0.20456205]
[1644601409542,0.323235,43534.0,43532.0,0.20456205]
[1644601409742,0.2607535,43539.0,43532.0,0.20456205]
[1644601409944,0.323235,43538.0,43532.0,0.20456205]
[1644601410147,0.323235,43538.0,43533.0,0.057435]
[1644601410400,0.323235,43538.0,43533.0,0.05811599]
[1644601411402,0.323235,43538.0,43533.0,0.057435]
[1644601411598,0.323235,43538.0,43533.0,0.05811599]
[1644601411999,0.38067162,43538.0,43533.0,0.05831535]
[1644601412203,5.014e-05,43539.0,43533.0,0.05831535]
[1644601412601,5.014e-05,43539.0,43533.0,0.10343436]
[1644601412799,5.014e-05,43539.0,43534.0,0.00068098]
[1644601413000,5.014e-05,43539.0,43534.0,0.05830934]
[1644601413300,5.014e-05,43539.0,43535.0,0.057431]
[1644601413500,5.014e-05,43539.0,43535.0,0.05763036]
[1644601413706,0.06594279,43538.0,43535.0,0.05763036]
[1644601414145,0.323235,43537.0,43535.0,0.05811232]
[1644601414549,0.323235,43537.0,43535.0,0.11554332]
[1644601415147,0.323235,43537.0,43535.0,0.114862]
[1644601416348,0.323235,43537.0,43535.0,0.074862]
[1644601416748,0.32053858,43537.0,43535.0,0.074862]
[1644601417449,0.08916373,43542.0,43535.0,0.074862]
[1644601417649,0.58425683,43541.0,43535.0,0.07506136]
[1644601417896,0.323241,43541.0,43535.0,0.07506136]
[1644601418096,0.323241,43541.0,43536.0,0.057433]
[1644601418299,0.323241,43541.0,43537.0,0.057431]
[1644601418698,0.323241,43541.0,43537.0,0.26943063]
[1644601418897,0.323241,43541.0,43537.0,0.27011194]
[1644601419298,0.124,43545.0,43538.0,0.34803324]
[1644601419499,0.00068112,43549.0,43539.0,0.057423]
[1644601419697,0.00068112,43549.0,43539.0,0.10762236]
[1644601419899,0.35756156,43550.0,43540.0,0.0458]
[1644601420100,0.35756156,43550.0,43541.0,0.2916955]
[1644601420300,0.00068117,43549.0,43542.0,0.0458]
[1644601420498,0.05810068,43549.0,43542.0,0.04599936]
[1644601420698,0.05810068,43549.0,43542.0,0.160639]
[1644601420699,0.34062521,43544.0,43542.0,0.160639]
[1644601420900,0.323241,43543.0,43542.0,0.16083836]
[1644601421097,0.323241,43548.0,43542.0,0.103221]
[1644601421299,0.323241,43548.0,43542.0,0.10342036]
[1644601421753,0.05742248,43547.0,43542.0,0.10342036]
[1644601421950,0.26870931,43544.0,43542.0,0.10342036]
[1644601422149,0.26870931,43544.0,43542.0,0.103221]
[1644601422150,0.323241,43543.0,43542.0,0.103221]
[1644601422355,0.41133145,43543.0,43541.0,0.00019936]
[1644601422552,0.41133145,43543.0,43540.0,0.00081709]
[1644601422752,0.46133145,43543.0,43540.0,0.00061773]
[1644601422951,0.323241,43542.0,43540.0,0.00061773]
[1644601423360,0.38067447,43542.0,43540.0,0.00061773]
[1644601423551,0.38067447,43542.0,43533.0,0.22180426]
[1644601423552,0.72519944,43541.0,43537.0,0.057434]
[1644601423755,0.057435,43540.0,43537.0,0.057434]
[1644601424052,0.323241,43539.0,43537.0,0.057434]
[1644601424452,0.37805706,43539.0,43537.0,0.057434]
[1644601424652,0.323241,43538.0,43537.0,0.057434]
[1644601424852,0.40195844,43541.0,43537.0,0.057434]
[1644601425056,0.323241,43540.0,43537.0,0.057434]
[1644601425304,0.323241,43540.0,43538.0,0.05743]
[1644601426100,0.323241,43540.0,43538.0,0.11486]
[1644601427302,0.323241,43540.0,43538.0,0.05743]
[1644601427501,0.380676,43540.0,43537.0,0.0008798]
[1644601427704,0.323241,43540.0,43537.0,0.0008798]
[1644601428304,0.323237,43539.0,43533.0,0.00019936]
[1644601428501,0.323237,43539.0,43532.0,0.20476141]
[1644601428704,0.323237,43539.0,43537.0,0.057431]
[1644601429742,0.323237,43539.0,43537.0,0.11486]
[1644601433311,0.323238,43539.0,43537.0,0.11486]
[1644601434512,0.323238,43539.0,43537.0,0.40840805]
[1644601434912,0.323238,43539.0,43538.0,0.29354805]
[1644601435112,0.323238,43539.0,43537.0,0.40860741]
[1644601435313,0.323238,43539.0,43537.0,0.40840805]
[1644601437053,0.323238,43539.0,43538.0,0.29354805]
[1644601437453,0.328238,43539.0,43538.0,0.29354805]
[1644601437653,0.005,43539.0,43538.0,0.29354805]
[1644601437856,0.328238,43539.0,43538.0,0.29354805]
[1644601439456,0.328238,43539.0,43537.0,0.11505936]
[1644601439656,0.328238,43539.0,43537.0,0.11486]
[1644601439863,0.005,43539.0,43538.0,0.48003327]
[1644601440058,0.00322189,43539.0,43538.0,0.50623769]
[1644601440306,0.00322189,43539.0,43538.0,0.28299969]
[1644601440900,0.00322189,43539.0,43538.0,0.60623769]
[1644601441502,0.00322189,43539.0,43538.0,0.90623769]
[1644601441700,0.00322189,43539.0,43538.0,0.60623769]
[1644601442104,0.00322189,43539.0,43538.0,0.94691319]
[1644601443001,0.00322189,43539.0,43538.0,0.99691319]
[1644601443405,0.00322189,43539.0,43538.0,1.388723]
[1644601443603,0.00065257,43549.0,43542.0,0.05]
[1644601443803,0.00065257,43549.0,43548.0,0.084055]
[1644601444051,0.00065257,43549.0,43548.0,1.06159508]
[1644601444253,0.0001,43564.0,43549.0,0.323146]
[1644601444453,0.39736046,43562.0,43554.0,0.39856464]
[1644601444652,0.27356046,43562.0,43556.0,0.057402]
[1644601444852,0.0574014,43561.0,43557.0,0.057402]
[1644601445452,0.05786059,43561.0,43557.0,0.057402]
[1644601446251,0.05786059,43561.0,43557.0,0.114804]
[1644601446451,0.0574014,43561.0,43557.0,0.114804]
[1644601446852,0.05808113,43561.0,43557.0,0.114804]
[1644601447451,0.24512195,43562.0,43558.0,0.057403]
[1644601448202,0.0574014,43561.0,43558.0,0.057403]
[1644601448403,0.05566033,43561.0,43558.0,0.057403]
[1644601450809,0.11306733,43561.0,43556.0,0.057407]
[1644601451005,0.05740631,43560.0,43556.0,0.057407]
[1644601451210,0.33299171,43563.0,43556.0,0.057407]
[1644601451646,0.33363244,43563.0,43556.0,0.057407]
[1644601452550,0.33299171,43563.0,43558.0,0.057401]
[1644601452751,0.33363245,43563.0,43558.0,0.057401]
[1644601452948,0.39103215,43563.0,43558.0,0.057401]
[1644601453150,0.17220299,43557.0,43553.0,0.0958]
[1644601453350,0.17220299,43557.0,43553.0,0.05]
[1644601453351,0.323238,43556.0,43553.0,0.05]
[1644601453952,0.17220299,43557.0,43553.0,0.05]
[1644601454151,0.3417535,43555.0,43553.0,0.05]
[1644601454352,0.39916566,43555.0,43553.0,0.05]
[1644601454952,0.4661429,43555.0,43553.0,0.05]
[1644601455152,0.72822417,43555.0,43553.0,0.05]
[1644601455406,0.4661429,43555.0,43553.0,0.05]
[1644601455603,0.74715524,43555.0,43553.0,0.05]
[1644601456203,0.4661429,43555.0,43553.0,0.05]
[1644601457304,0.73496466,43555.0,43553.0,0.05]
[1644601457704,0.6775525,43555.0,43553.0,0.05]
[1644601457907,0.6775525,43555.0,43554.0,0.057411]
[1644601458507,1.26640322,43555.0,43553.0,0.05]
[1644601458705,1.26640322,43555.0,43546.0,0.4089446]
[1644601458706,0.057427,43553.0,43549.0,0.00063646]
[1644601458907,0.323238,43550.0,43549.0,0.00063646]
[1644601459157,0.62568722,43550.0,43549.0,0.00063646]
[1644601459757,0.057433,43549.0,43547.0,0.05]
[1644601459954,0.29454387,43548.0,43547.0,0.05063645]
[1644601460654,0.61776387,43548.0,43547.0,0.05063645]
[1644601460854,0.29454387,43548.0,43547.0,0.05]
[1644601461053,0.61776387,43548.0,43547.0,0.05]
[1644601461756,0.29454387,43548.0,43547.0,0.05]
[1644601463809,0.380653,43549.0,43547.0,0.05]
[1644601464009,0.26445902,43548.0,43547.0,0.05]
[1644601465010,0.69491837,43547.0,43545.0,0.00063642]
[1644601465211,0.60524341,43546.0,43545.0,0.00063642]
[1644601465615,0.32322,43546.0,43545.0,0.00063642]
[1644601465811,0.32322,43545.0,43543.0,0.00063643]
[1644601466311,0.32322,43544.0,43543.0,0.00063643]
[1644601466956,0.32322,43544.0,43540.0,0.00019936]
[1644601467155,0.32322,43544.0,43541.0,0.00063644]
[1644601467560,0.60409799,43542.0,43541.0,0.00063644]
[1644601467759,0.28087799,43542.0,43541.0,0.00063644]
[1644601467957,0.60409799,43542.0,43541.0,0.00063644]
[1644601468160,0.28087799,43542.0,43540.0,0.05762636]
[1644601468457,0.32322,43541.0,43540.0,0.30248115]
[1644601469058,0.32322,43541.0,43540.0,0.24505415]
[1644601469859,0.057427,43543.0,43540.0,0.55197827]
[1644601470060,0.057427,43543.0,43541.0,0.24505415]
[1644601470307,0.27360801,43546.0,43540.0,0.24505415]
[1644601470308,0.32322,43542.0,43540.0,0.24505415]
[1644601470503,0.32322,43542.0,43541.0,0.057427]
[1644601471000,0.32322,43542.0,43540.0,0.24546002]
[1644601471202,0.32322,43542.0,43540.0,0.24526066]
[1644601471599,0.32322,43542.0,43540.0,0.00020651]
[1644601471800,0.32322,43542.0,43539.0,0.24525351]
[1644601472000,0.32322,43542.0,43539.0,0.30288903]
[1644601472201,0.32322,43542.0,43540.0,0.24505415]
[1644601472800,0.32322,43542.0,43539.0,0.30288903]
[1644601473001,0.32322,43542.0,43539.0,0.30268251]
[1644601473201,0.32322,43542.0,43539.0,0.30334694]
[1644601473801,0.32322,43542.0,43540.0,0.24505415]
[1644601474051,0.32322,43542.0,43540.0,0.30248215]
[1644601474453,0.32322,43542.0,43540.0,0.24505415]
[1644601474754,0.32322,43542.0,43539.0,0.00019936]
[1644601474953,0.32322,43542.0,43538.0,0.29591794]
[1644601475153,0.37322,43542.0,43538.0,0.05066443]
[1644601475355,0.32322,43541.0,43538.0,0.05]
[1644601475555,0.44757864,43540.0,43538.0,0.05018393]
[1644601475755,0.77079864,43540.0,43538.0,0.05018393]
[1644601475957,0.85956636,43540.0,43538.0,0.05018393]
[1644601476555,0.85956636,43540.0,43538.0,0.05]
[1644601477354,0.85956636,43540.0,43538.0,0.107431]
[1644601478202,0.85956636,43540.0,43539.0,0.1960837]
[1644601478605,0.57833488,43540.0,43539.0,0.1960837]
[1644601478802,0.57833488,43540.0,43538.0,0.30371406]
[1644601479003,0.20510968,43540.0,43538.0,0.107431]
[1644601479504,0.26254568,43540.0,43538.0,0.107431]
[1644601479705,0.26254568,43540.0,43538.0,0.05]
[1644601479903,0.31254568,43540.0,43538.0,0.05]
[1644601481006,0.26254568,43540.0,43538.0,0.05]
[1644601481210,0.26254568,43540.0,43538.0,0.107431]
[1644601482457,0.2623895,43540.0,43539.0,0.19606731]
[1644601482657,0.2623895,43540.0,43539.0,0.19606752]
[1644601483261,0.323236,43543.0,43539.0,0.19606752]
[1644601484058,0.40163452,43540.0,43539.0,0.19625128]
[1644601484259,0.72337924,43540.0,43539.0,0.19625128]
[1644601484858,0.40163452,43540.0,43539.0,0.19625128]
[1644601485058,0.40163452,43540.0,43539.0,0.19606752]
[1644601486509,0.40163452,43540.0,43538.0,0.107432]
[1644601486700,0.40163452,43540.0,43538.0,0.35253828]
[1644601486702,0.07839852,43540.0,43538.0,0.35253828]
[1644601486899,0.40163452,43540.0,43538.0,0.35253828]
[1644601487100,0.07839852,43540.0,43539.0,0.24510628]
[1644601487299,0.40163452,43540.0,43539.0,0.24510628]
[1644601487499,0.07839852,43540.0,43539.0,0.24510628]
[1644601487900,0.40163452,43540.0,43539.0,0.24510628]
[1644601488100,0.07839852,43540.0,43539.0,0.24510628]
[1644601488600,0.057423,43541.0,43539.0,0.24510628]
[1644601488801,0.323236,43540.0,43539.0,0.24510628]
[1644601489059,0.323236,43540.0,43538.0,0.107432]
[1644601489858,0.057423,43541.0,43538.0,0.107432]
[1644601490058,0.380659,43541.0,43540.0,0.24507055]
[1644601490259,0.057423,43541.0,43540.0,0.24507055]
[1644601490458,0.057422,43544.0,43539.0,0.35155054]
[1644601490758,0.114841,43548.0,43541.0,0.2450631]
[1644601490956,0.114841,43548.0,43544.0,0.19605328]
[1644601491157,0.114841,43548.0,43545.0,0.057419]
[1644601491360,0.06439982,43547.0,43546.0,0.19605328]
[1644601491756,0.38763582,43547.0,43546.0,0.19605328]
[1644601492157,0.44505482,43547.0,43546.0,0.19605328]
[1644601492806,0.49505482,43547.0,43546.0,0.19605328]
[1644601493398,0.49505482,43547.0,43545.0,0.057419]
[1644601493598,0.17181882,43547.0,43545.0,0.057419]
[1644601493799,0.323236,43546.0,43545.0,0.057419]
[1644601494801,0.323236,43546.0,43545.0,0.3024821]
[1644601495402,0.057419,43547.0,43545.0,0.3024821]
[1644601495601,0.5516,43554.0,43546.0,0.2450631]
[1644601495801,0.5516,43554.0,43548.0,0.057415]
[1644601496404,0.317846,43550.0,43548.0,0.057415]
[1644601497554,0.057416,43551.0,43548.0,0.057415]
[1644601498654,0.29157812,43549.0,43548.0,0.057415]
[1644601499257,0.61481412,43549.0,43547.0,0.05061995]
[1644601499458,0.61481412,43549.0,43547.0,0.05]
[1644601499459,0.58582616,43548.0,43547.0,0.05]
[1644601499656,0.26259016,43548.0,43547.0,0.05]
[1644601500905,0.25951433,43548.0,43547.0,0.05]
[1644601501905,0.61481412,43549.0,43547.0,0.05]
[1644601502106,0.26414068,43548.0,43547.0,0.05]
[1644601502305,0.58737668,43548.0,43547.0,0.05]
[1644601502503,0.26414068,43548.0,43547.0,0.05]
[1644601502703,0.58737668,43548.0,43547.0,0.05]
[1644601503004,0.26414068,43548.0,43547.0,0.05]
[1644601503806,0.58737668,43548.0,43547.0,0.05]
[1644601504051,0.26414068,43548.0,43547.0,0.05]
[1644601504252,0.26414068,43548.0,43547.0,0.2462093]
[1644601504453,0.26414068,43548.0,43547.0,0.05]
[1644601505054,0.58737668,43548.0,43547.0,0.05]
[1644601505255,0.26414068,43548.0,43547.0,0.05]
[1644601506158,0.26414068,43548.0,43542.0,0.057427]
[1644601506159,1.05,43545.0,43539.0,0.29433085]
[1644601506362,1.05,43545.0,43536.0,0.29433085]
[1644601506363,0.323236,43539.0,43536.0,0.29433085]
[1644601506560,0.60566653,43539.0,43532.0,0.4604895]
[1644601506758,0.70566653,43539.0,43533.0,0.00019936]
[1644601507061,0.323236,43535.0,43532.0,0.00129936]
[1644601507260,0.08539946,43533.0,43532.0,0.00129936]
[1644601507459,0.40863546,43533.0,43532.0,0.0011]
[1644601508512,0.40863546,43533.0,43531.0,0.30173021]
[1644601508712,0.67374317,43532.0,43531.0,0.30153085]
[1644601508913,0.323236,43532.0,43531.0,0.0072]
[1644601509111,0.323236,43532.0,43531.0,0.07191703]
[1644601509711,0.373236,43532.0,43531.0,0.36624788]
[1644601510714,0.323236,43532.0,43531.0,0.07191703]
[1644601512062,0.323236,43532.0,43531.0,0.36624788]
[1644601512663,0.323236,43532.0,43531.0,0.07191703]
[1644601513465,0.15210051,43532.0,43531.0,0.36624788]
[1644601513865,0.15210051,43532.0,43531.0,0.07191703]
[1644601514065,0.15210051,43532.0,43531.0,0.36624788]
[1644601514265,0.15210051,43532.0,43531.0,0.43096491]
[1644601515513,0.15210051,43532.0,43531.0,0.43237034]
[1644601515712,0.380679,43533.0,43531.0,0.43237034]
[1644601515913,0.380679,43533.0,43531.0,0.48980334]
[1644601516113,0.380679,43533.0,43531.0,0.42508631]
[1644601516314,0.380679,43533.0,43532.0,0.06471703]
[1644601516615,0.380679,43533.0,43532.0,0.35904788]
[1644601517014,0.380679,43533.0,43532.0,0.06471703]
[1644601517216,0.380705,43533.0,43532.0,0.06471703]
[1644601517717,0.323262,43533.0,43532.0,0.06471703]
[1644601519556,0.323262,43533.0,43532.0,0.12943406]
[1644601520360,0.323262,43533.0,43532.0,0.13013281]
[1644601521363,0.4408672,43541.0,43532.0,0.13013281]
[1644601521364,0.05743,43537.0,43532.0,0.13013281]
[1644601521558,0.236058,43541.0,43536.0,0.34422212]
[1644601521559,0.23683555,43541.0,43536.0,0.34422212]
[1644601521759,0.00067755,43541.0,43538.0,0.29422212]
[1644601521958,0.00067755,43541.0,43538.0,0.43973644]
[1644601522158,0.00067755,43541.0,43539.0,0.48973644]
[1644601522459,0.3267065,43549.0,43540.0,0.42051579]
[1644601522658,0.323262,43548.0,43541.0,0.38202095]
[1644601522916,0.323262,43548.0,43541.0,1.03920663]
[1644601522917,0.00067762,43542.0,43541.0,1.03920663]
[1644601523113,0.00067762,43542.0,43541.0,1.08500663]
[1644601523314,0.00067762,43542.0,43541.0,1.24986329]
[1644601523511,0.00067762,43542.0,43541.0,0.9556801]
[1644601523715,0.057413,43551.0,43543.0,0.057413]
[1644601523912,0.057413,43551.0,43550.0,0.06407839]
[1644601524112,0.12815678,43549.0,43543.0,0.39737661]
[1644601524315,0.12815678,43549.0,43548.0,0.30017072]
[1644601524513,0.12815678,43549.0,43548.0,0.34597072]
[1644601524714,0.12815678,43549.0,43548.0,0.72108584]
[1644601524918,0.12815678,43549.0,43548.0,0.87849884]
[1644601525116,0.12815678,43549.0,43548.0,1.20176084]
[1644601525315,0.12815678,43549.0,43548.0,1.3666175]
[1644601525519,0.12815678,43549.0,43548.0,1.2666175]
[1644601525715,0.12815678,43549.0,43548.0,1.3666175]
[1644601525916,0.12815678,43549.0,43548.0,1.4166175]
[1644601526117,0.12815678,43549.0,43548.0,1.38751911]
[1644601526315,0.12815678,43549.0,43548.0,1.33751911]
[1644601526763,0.12815678,43549.0,43548.0,1.0433555]